fUST/lending_fUST_20250225
["ID","MTS","AMOUNT","RATE_DAILY","PERIOD"]
[354356857,1740441057903,-557.4308118,0.0001985,2]
[354356858,1740441057913,-154.8331553,0.0001985,2]
[354356859,1740441057922,-557.4308118,0.0001985,2]
[354356860,1740441057933,-154.8331553,0.0001985,2]
[354356861,1740441057944,-153.0,0.0001985,2]
[354356862,1740441057953,-153.0,0.0001985,2]
[354356863,1740441057962,-153.0,0.0001985,2]
[354356864,1740441057972,-557.4308118,0.0001985,2]
[354356865,1740441057981,-154.8331553,0.0001985,2]
[354356866,1740441057991,-153.0,0.0001985,2]
[354356867,1740441058001,-557.4308118,0.0001985,2]
[354356868,1740441058011,-154.6494138,0.0001985,2]
[354356869,1740441058021,-154.7376905,0.0001985,2]
[354356870,1740441058030,-220.9116047,0.0001985,2]
[354356871,1740441058040,-362.7581208,0.0001985,2]
[354356872,1740441058050,-1684.660114,0.0001988,5]
[354356873,1740441058059,-71937.4153512,0.00019888,7]
[354356874,1740441058069,-1000.0,0.000199,5]
[354356875,1740441058079,-19601.91606613,0.000199,7]
[354356876,1740441058089,-500.0,0.00019902,2]
[354356877,1740441058100,-1000.0,0.0001992,5]
[354356878,1740441058109,-1000.0,0.0001994,5]
[354356879,1740441058119,-1000.0,0.0001996,5]
[354356880,1740441058131,-1000.0,0.0001998,5]
[354356881,1740441058140,-160.0,0.0002,2]
[354356882,1740441058151,-305.42305855,0.0002,120]
[354356883,1740441058160,-500.0,0.0002,7]
[354356884,1740441058170,-1000.0,0.0002,5]
[354356885,1740441058180,-151.19763648,0.0002,2]
[354356886,1740441058189,-224.0,0.0002,3]
[354356887,1740441058199,-19601.91606613,0.0002,10]
[354356888,1740441058208,-160.0,0.0002,7]
[354356889,1740441058217,-500.0,0.00020002,2]
[354356890,1740441058227,-1675.81496111,0.00020036,30]
[354356891,1740441058237,-500.0,0.00020102,2]
[354356892,1740441058246,-500.0,0.00020202,2]
[354356893,1740441058256,-686.56,0.00020273,8]
[354356894,1740441058265,-587.70781406,0.00020299,2]
[354356895,1740441058275,-500.0,0.00020302,2]
[354356896,1740441058284,-308.6390362,0.00020388,2]
[354356897,1740441058294,-153.0,0.00020388,2]
[354356898,1740441058304,-153.0,0.00020398,2]
[354356899,1740441058313,-153.0,0.00020398,2]
[354356900,1740441058324,-153.0,0.00020398,2]
[354356901,1740441058333,-153.0,0.00020398,2]
[354356902,1740441058343,-153.0,0.00020398,2]
[354356903,1740441058353,-153.0,0.00020398,2]
[354356904,1740441058362,-153.0,0.00020398,2]
[354356905,1740441058372,-153.0,0.00020398,2]
[354356906,1740441058382,-153.0,0.00020398,2]
[354356907,1740441058391,-500.0,0.00020402,2]
[354356908,1740441058401,-355.3763574,0.00020446,2]
[354356909,1740441058412,-435.8689266,0.00020488,2]
[354356910,1740441058421,-500.0,0.00020502,2]
[354356911,1740441058431,-500.0,0.00020547,7]
[354356912,1740441058440,-500.0,0.00020602,2]
[354356913,1740441058449,-154.796407,0.00020688,2]
[354356914,1740441058459,-1114.413034,0.00020688,2]
[354356915,1740441058468,-23182.06,0.000207,2]
[354356916,1740441058478,-500.0,0.00020702,2]
[354356917,1740441058487,-1875.35,0.0002071,20]
[354356918,1740441058497,-500.0,0.00020802,2]
[354356919,1740441058507,-3800.0,0.00020879,2]
[354356920,1740441058517,-3800.0,0.00020879,2]
[354356921,1740441058527,-3800.0,0.00020879,2]
[354356922,1740441058536,-3800.0,0.00020879,2]
[354356923,1740441058545,-3800.0,0.00020879,2]
[354356924,1740441058555,-3800.0,0.00020879,2]
[354356925,1740441058564,-3800.0,0.00020879,2]
[354356926,1740441058574,-3800.0,0.00020879,2]
[354356927,1740441058583,-3800.0,0.00020879,2]
[354356928,1740441058593,-3800.0,0.00020879,2]
[354356929,1740441058602,-3800.0,0.00020879,2]
[354356930,1740441058612,-3800.0,0.00020879,2]
[354356931,1740441058621,-3800.0,0.00020879,2]
[354356932,1740441058631,-6610.87814179,0.00020879,2]
[354356933,1740441058641,-500.0,0.00020902,2]
[354356934,1740441058650,-5000.0,0.00020912,14]
[354356935,1740441058659,-153.0,0.00020945,2]
[354356936,1740441058668,-600.0,0.00021,60]
[354356937,1740441058678,-1839.00412562,0.00021,30]
[354356938,1740441058688,-500.0,0.00021002,2]
[354356939,1740441058699,-200.0,0.00021014,120]
[354356940,1740441058710,-500.0,0.00021095,7]
[354356941,1740441058720,-500.0,0.00021102,2]
[354356942,1740441058731,-2634.7628706,0.000212,30]
[354356943,1740441058742,-500.0,0.00021202,2]
[354356944,1740441058752,-500.0,0.00021302,2]
[354356945,1740441058763,-500.0,0.00021402,2]
[354356946,1740441058773,-1123.8452563,0.00021481,2]
[354356947,1740441058784,-3098.76,0.000215,7]
[354356948,1740441058795,-500.0,0.00021502,2]
[354356949,1740441058806,-500.0,0.00021602,2]
[354356950,1740441058820,-157.498202,0.00021612,2]
[354356951,1740441058844,-500.0,0.00021643,7]
[354356952,1740441058866,-686.56,0.00021643,10]
[354356953,1740441058888,-500.0,0.00021702,2]
[354356954,1740441058904,-3500.0,0.00021726,2]
[354356955,1740441058916,-153.0,0.00021785,2]
[354356956,1740441058928,-153.0,0.00021785,2]
[354356957,1740441058939,-153.0,0.00021785,2]
[354356958,1740441058951,-153.0,0.00021785,2]
[354356959,1740441058961,-153.0,0.00021785,2]
[354356960,1740441058971,-153.0,0.00021785,2]
[354356961,1740441058982,-153.0,0.00021785,2]
[354356962,1740441058991,-153.0,0.00021785,2]
[354356963,1740441059002,-153.0,0.00021785,2]
[354356964,1740441059013,-153.0,0.00021785,2]
[354356965,1740441059025,-153.0,0.00021785,2]
[354356966,1740441059035,-153.0,0.0002179,2]
[354356967,1740441059045,-153.0,0.0002179,2]
[354356968,1740441059055,-153.0,0.0002179,2]
[354356969,1740441059065,-153.0,0.0002179,2]
[354356970,1740441059079,-153.0,0.0002179,2]
[354356971,1740441059089,-153.0,0.0002179,2]
[354356972,1740441059100,-153.0,0.0002179,2]
[354356973,1740441059111,-153.0,0.0002179,2]
[354356974,1740441059122,-153.0,0.0002179,2]
[354356975,1740441059132,-153.0,0.0002179,2]
[354356976,1740441059142,-153.0,0.0002179,2]
[354356977,1740441059152,-153.0,0.00021796,2]
[354356978,1740441059162,-153.0,0.00021796,2]
[354356979,1740441059172,-153.0,0.00021796,2]
[354356980,1740441059182,-153.0,0.00021796,2]
[354356981,1740441059191,-153.0,0.00021796,2]
[354356982,1740441059207,-153.0,0.00021796,2]
[354356983,1740441059224,-153.0,0.00021796,2]
[354356984,1740441059234,-153.0,0.00021796,2]
[354356985,1740441059243,-153.0,0.00021796,2]
[354356986,1740441059253,-153.0,0.00021796,2]
[354356987,1740441059262,-153.0,0.00021796,2]
[354356988,1740441059271,-500.0,0.00021802,2]
[354356989,1740441059281,-188.93335932,0.00021878,32]
[354356990,1740441059291,-500.0,0.00021902,2]
[354356991,1740441059300,-1100.0,0.00021917,30]
[354356992,1740441059309,-1100.0,0.00021917,30]
[354356993,1740441059319,-936.80259787,0.00021917,30]
[354356994,1740441059331,-400.60335735,0.00021918,7]
[354356995,1740441059341,-538.0,0.00021983,2]
[354356996,1740441059350,-1970.0,0.00021983,2]
[354356997,1740441059359,-396.0,0.00021983,2]
[354356998,1740441059370,-162.629999,0.00022,10]
[354356999,1740441059379,-3800.0,0.00022,2]
[354357000,1740441059389,-3800.0,0.00022,2]
[354357001,1740441059398,-3800.0,0.00022,2]
[354357002,1740441059408,-3800.0,0.00022,2]
[354357003,1740441059418,-3800.0,0.00022,2]
[354357004,1740441059428,-3800.0,0.00022,2]
[354357005,1740441059438,-3800.0,0.00022,2]
[354357006,1740441059448,-3800.0,0.00022,2]
[354357007,1740441059458,-3800.0,0.00022,2]
[354357008,1740441059608,-3800.0,0.00022,2]
[354357009,1740441059619,-3800.0,0.00022,2]
[354357010,1740441059630,-3800.0,0.00022,2]
[354357011,1740441059640,-3800.0,0.00022,2]
[354357012,1740441059650,-3800.0,0.00022,2]
[354357013,1740441059660,-3800.0,0.00022,2]
[354357014,1740441059669,-500.0,0.00022002,4]
[354357015,1740441059679,-109909.12190482,0.000221,5]
[354357016,1740441059688,-500.0,0.00022102,3]
[354357017,1740441059698,-500.0,0.00022191,7]
[354357018,1740441059708,-500.0,0.00022202,6]
[354357019,1740441059717,-500.0,0.00022302,6]
[354357020,1740441059727,-445.94572311,0.0002232,7]
[354357021,1740441059737,-166.52967041,0.00022324,2]
[354357022,1740441059746,-12825.62500843,0.00022325,2]
[354357023,1740441059756,-151.0,0.00022325,15]
[354357024,1740441059765,-23182.06,0.000224,14]
[354357025,1740441059775,-500.0,0.00022402,6]
[354357026,1740441059784,-116715.66524605,0.00022484,2]
[354357027,1740441059794,-500.0,0.00022502,2]
[354357028,1740441059803,-278.716261,0.00022509,2]
[354357029,1740441059813,-500.0,0.0002252,7]
[354357030,1740441059824,-200.0,0.00022521,120]
[354357031,1740441059835,-500.0,0.00022602,2]
[354357032,1740441059844,-500.0,0.00022702,3]
[354357033,1740441059855,-501.34694772,0.0002272,7]
[354357034,1740441059866,-500.0,0.00022739,7]
[354357035,1740441059877,-500.0,0.00022802,2]
[354357036,1740441059888,-500.0,0.00022902,2]
[354357037,1740441059897,-244.70805111,0.00023,2]
[354357038,1740441059907,-33609.4433851,0.00023,2]
[354357039,1740441059917,-2152.21581736,0.00023,60]
[354357040,1740441059927,-2675.28037667,0.00023,30]
[354357041,1740441059938,-150.0,0.00023,2]
[354357042,1740441059949,-157.498202,0.00023,15]
[354357043,1740441059959,-200.0,0.00023,2]
[354357044,1740441059969,-500.0,0.00023002,6]
[354357045,1740441059978,-686.56,0.00023013,12]
[354357046,1740441059989,-500.0,0.00023102,4]
[354357047,1740441059999,-500.0,0.00023202,3]
[354357048,1740441060009,-500.0,0.00023287,7]
[354357049,1740441060019,-500.0,0.00023302,7]
[354357050,1740441060029,-25455.26,0.000234,2]
[354357051,1740441060040,-500.0,0.00023402,5]
[354357052,1740441060051,-155.1730363,0.000235,2]
[354357053,1740441060061,-500.0,0.00023502,7]
[354357054,1740441060071,-500.0,0.00023602,7]
[354357055,1740441060082,-416.87,0.00023697,2]
[354357056,1740441060094,-500.0,0.00023702,5]
[354357057,1740441060104,-500.0,0.00023802,7]
[354357058,1740441060115,-2866.82472107,0.00023821,2]
[354357059,1740441060125,-500.0,0.00023835,7]
[354357060,1740441060135,-17554.48164967,0.000239,2]
[354357061,1740441060145,-500.0,0.00023902,4]
[354357062,1740441060156,-1700.0,0.00023972,2]
[354357063,1740441060166,-1661.65088151,0.00024,2]
[354357064,1740441060177,-151.0,0.00024,14]
[354357065,1740441060188,-486.99564315,0.00024,120]
[354357066,1740441060199,-500.0,0.00024002,5]
[354357067,1740441060210,-200.0,0.00024027,120]
[354357068,1740441060221,-23182.06,0.000241,14]
[354357069,1740441060232,-500.0,0.00024102,7]
[354357070,1740441060242,-150.0,0.00024164,2]
[354357071,1740441060253,-500.0,0.00024202,3]
[354357072,1740441060263,-500.0,0.00024302,2]
[354357073,1740441060273,-367.15348086,0.00024383,7]
[354357074,1740441060283,-686.56,0.00024383,14]
[354357075,1740441060293,-500.0,0.00024402,6]
[354357076,1740441060302,-500.0,0.00024502,5]
[354357077,1740441060312,-500.0,0.00024602,2]
[354357078,1740441060321,-150.33,0.0002462,6]
[354357079,1740441060333,-150.33,0.0002462,6]
[354357080,1740441060342,-500.0,0.0002462,6]
[354357081,1740441060352,-164.53102008,0.0002462,6]
[354357082,1740441060361,-205.07939755,0.0002462,6]
[354357083,1740441060371,-500.0,0.0002462,2]
[354357084,1740441060380,-167.02772329,0.0002462,6]
[354357085,1740441060389,-150.33,0.0002462,6]
[354357086,1740441060398,-500.0,0.0002462,6]
[354357087,1740441060408,-150.33,0.0002462,6]
[354357088,1740441060417,-150.33,0.0002462,6]
[354357089,1740441060427,-500.0,0.00024657,2]
[354357090,1740441060437,-500.0,0.00024657,2]
[354357091,1740441060447,-500.0,0.00024657,2]
[354357092,1740441060456,-500.0,0.00024657,2]
[354357093,1740441060466,-500.0,0.00024657,2]
[354357094,1740441060475,-500.0,0.00024657,2]
[354357095,1740441060485,-500.0,0.00024657,2]
[354357096,1740441060494,-500.0,0.00024657,2]
[354357097,1740441060503,-500.0,0.00024657,2]
[354357098,1740441060513,-490.78692472,0.00024657,2]
[354357099,1740441060523,-200.0,0.00024657,2]
[354357100,1740441060533,-200.39729407,0.00024657,2]
[354357101,1740441060543,-380.0,0.00024658,2]
[354357102,1740441060552,-200.0,0.00024658,2]
[354357103,1740441060562,-500.0,0.00024702,5]
[354357104,1740441060574,-500.0,0.00024802,2]
[354357105,1740441060584,-150.33,0.00024894,6]
[354357106,1740441060593,-150.33,0.00024894,6]
[354357107,1740441060603,-500.0,0.00024894,6]
[354357108,1740441060612,-500.0,0.00024894,2]
[354357109,1740441060621,-150.33,0.00024894,6]
[354357110,1740441060631,-500.0,0.00024894,6]
[354357111,1740441060640,-150.33,0.00024894,6]
[354357112,1740441060651,-150.33,0.00024894,6]
[354357113,1740441060660,-5000.0,0.00024899,2]
[354357114,1740441060670,-5000.0,0.00024899,2]
[354357115,1740441060680,-5000.0,0.00024899,2]
[354357116,1740441060690,-5000.0,0.00024899,2]
[354357117,1740441060699,-5000.0,0.00024899,2]
[354357118,1740441060709,-500.0,0.00024902,3]
[354357119,1740441060719,-1063.788476,0.0002498,5]
[354357120,1740441060728,-1970.0,0.00024983,2]
[354357121,1740441060738,-396.0,0.00024983,2]
[354357122,1740441060747,-227941.99959406,0.00025,7]
[354357123,1740441060757,-10364.0,0.00025,2]
[354357124,1740441060767,-1398.32503023,0.00025,2]
[354357125,1740441060776,-1000.6108308,0.00025,2]
[354357126,1740441060786,-150.0,0.00025,7]
[354357127,1740441060796,-1047.33639123,0.00025,2]
[354357128,1740441060806,-204.74413653,0.00025,2]
[354357129,1740441060815,-833.45124758,0.00025,2]
[354357130,1740441060828,-273.34891462,0.00025,2]
[354357131,1740441060840,-2579.73008872,0.00025,2]
[354357132,1740441060850,-192.43014222,0.00025,7]
[354357133,1740441060860,-15887.72316964,0.00025,7]
[354357134,1740441060870,-2623.30944175,0.00025,7]
[354357135,1740441060880,-199.999999,0.00025,120]
[354357136,1740441060890,-196.60307709,0.00025,30]
[354357137,1740441060900,-186.30799725,0.00025,120]
[354357138,1740441060909,-1000.0,0.00025,5]
[354357139,1740441060919,-19601.91606613,0.00025,30]
[354357140,1740441060929,-500.0,0.00025002,5]
[354357141,1740441060939,-1700.0,0.00025068,7]
[354357142,1740441060948,-945.77,0.00025102,6]
[354357143,1740441060958,-157.498202,0.0002511,3]
[354357144,1740441060967,-150.33,0.00025168,6]
[354357145,1740441060977,-150.33,0.00025168,6]
[354357146,1740441060986,-500.0,0.00025168,6]
[354357147,1740441060996,-500.0,0.00025168,2]
[354357148,1740441061006,-150.33,0.00025168,6]
[354357149,1740441061016,-520.75626432,0.00025168,6]
[354357150,1740441061025,-150.33,0.00025168,6]
[354357151,1740441061035,-150.33,0.00025168,6]
[354357152,1740441061044,-25455.26,0.000252,2]
[354357153,1740441061053,-151.0,0.00025205,120]
[354357154,1740441061063,-317.31424343,0.000253,10]
[354357155,1740441061073,-152.0,0.00025373,2]
[354357156,1740441061082,-150.33,0.00025442,6]
[354357157,1740441061091,-150.33,0.00025442,6]
[354357158,1740441061100,-500.0,0.00025442,6]
[354357159,1740441061109,-500.0,0.00025442,2]
[354357160,1740441061118,-150.33,0.00025442,6]
[354357161,1740441061128,-150.33,0.00025442,6]
[354357162,1740441061137,-150.33,0.00025442,6]
[354357163,1740441061147,-900.0,0.00025469,3]
[354357164,1740441061156,-1000.0,0.000255,2]
[354357165,1740441061166,-200.0,0.00025534,120]
[354357166,1740441061176,-65264.67511726,0.00025619,35]
[354357167,1740441061186,-167.2135,0.00025693,2]
[354357168,1740441061195,-150.33,0.00025716,6]
[354357169,1740441061205,-150.33,0.00025716,6]
[354357170,1740441061214,-500.0,0.00025716,6]
[354357171,1740441061223,-751.74309389,0.00025716,2]
[354357172,1740441061233,-150.33,0.00025716,6]
[354357173,1740441061242,-152.21243676,0.00025716,6]
[354357174,1740441061252,-215.99229624,0.00025716,6]
[354357175,1740441061261,-686.56,0.00025753,16]
[354357176,1740441061271,-5000.0,0.00025785,8]
[354357177,1740441061281,-23182.06,0.000258,14]
[354357178,1740441061291,-1700.0,0.0002589,7]
[354357179,1740441061300,-237.86792084,0.0002599,6]
[354357180,1740441061309,-248.35,0.0002599,6]
[354357181,1740441061319,-500.0,0.0002599,6]
[354357182,1740441061330,-178.84674678,0.0002599,6]
[354357183,1740441061340,-19900.0,0.00026,2]
[354357184,1740441061350,-513.16012756,0.00026,2]
[354357185,1740441061359,-61517.98122116,0.00026,30]
[354357186,1740441061368,-151.0,0.00026,7]
[354357187,1740441061378,-19601.91606613,0.00026,3]
[354357188,1740441061388,-19601.91606613,0.00026,30]
[354357189,1740441061397,-160.0,0.00026,3]
[354357190,1740441061407,-1675.81496111,0.00026062,30]
[354357191,1740441061416,-261.78175757,0.00026163,5]
[354357192,1740441061426,-500.0,0.00026264,6]
[354357193,1740441061435,-372.89274,0.00026388,2]
[354357194,1740441061445,-538.32517506,0.000265,60]
[354357195,1740441061454,-500.0,0.00026538,6]
[354357196,1740441061464,-1700.0,0.00026712,7]
[354357197,1740441061473,-500.0,0.00026812,6]
[354357198,1740441061483,-3627.58230407,0.00027,2]
[354357199,1740441061493,-336.81372144,0.00027,2]
[354357200,1740441061502,-1179.41102,0.00027,120]
[354357201,1740441061512,-1179.41102,0.00027,120]
[354357202,1740441061521,-1179.41102,0.00027,120]
[354357203,1740441061531,-1179.41102,0.00027,120]
[354357204,1740441061541,-1179.41102,0.00027,120]
[354357205,1740441061550,-1179.41102,0.00027,120]
[354357206,1740441061559,-1179.41102,0.00027,120]
[354357207,1740441061569,-1179.41102,0.00027,120]
[354357208,1740441061579,-1179.4111,0.00027,120]
[354357209,1740441061588,-633.96170699,0.00027,120]
[354357210,1740441061597,-493.93541104,0.00027,120]
[354357211,1740441061606,-19601.91606613,0.00027,120]
[354357212,1740441061616,-200.0,0.00027041,120]
[354357213,1740441061626,-173.10700505,0.0002705,7]
[354357214,1740441061635,-500.0,0.00027086,6]
[354357215,1740441061644,-686.56,0.00027123,18]
[354357216,1740441061653,-500.0,0.0002736,6]
[354357217,1740441061663,-1000.0,0.00027397,5]
[354357218,1740441061672,-1000.0,0.00027397,5]
[354357219,1740441061681,-1000.0,0.00027397,5]
[354357220,1740441061691,-1000.0,0.00027397,5]
[354357221,1740441061700,-1000.0,0.00027397,5]
[354357222,1740441061709,-307.70663247,0.00027397,5]
[354357223,1740441061718,-212.19040315,0.00027397,2]
[354357224,1740441061727,-227.9722434,0.00027397,120]
[354357225,1740441061737,-2582.3,0.000274,14]
[354357226,1740441061747,-44616.21019866,0.000275,2]
[354357227,1740441061757,-25455.26,0.000275,2]
[354357228,1740441061766,-500.60614424,0.00027634,6]
[354357229,1740441061776,-396.0,0.00027983,2]
[354357230,1740441061785,-1174.32277874,0.0002799,7]
[354357231,1740441061794,-32182.91678941,0.0002799,2]
[354357232,1740441061804,-339.95070165,0.00028,120]
[354357233,1740441061813,-23182.06,0.00028,30]
[354357234,1740441061823,-19601.91606613,0.00028,3]
[354357235,1740441061837,-157.498202,0.00028,30]
[354357236,1740441061846,-160.0,0.00028,3]
[354357237,1740441061855,-1700.0,0.00028356,7]
[354357238,1740441061865,-686.56,0.00028493,20]
[354357239,1740441061875,-157.498202,0.00028493,20]
[354357240,1740441061885,-1558.02713363,0.000285,7]
[354357241,1740441061895,-1420.26,0.000285,30]
[354357242,1740441061904,-200.0,0.00028548,120]
[354357243,1740441061914,-500.0,0.00028552,5]
[354357244,1740441061924,-3200.310933,0.000286,120]
[354357245,1740441061935,-1000.0,0.00028712,2]
[354357246,1740441061945,-1000.0,0.00028781,2]
[354357247,1740441061956,-165.34857349,0.000288,7]
[354357248,1740441061965,-17554.48164967,0.000289,2]
[354357249,1740441061975,-1000.0,0.00028972,2]
[354357250,1740441061985,-865.34067043,0.00029,2]
[354357251,1740441061995,-392.02497544,0.00029,120]
[354357252,1740441062005,-15.61830769,0.00029,120]
[354357253,1740441062236,-484.38169231,0.00029,120]
[354357254,1740441062247,-500.0,0.00029,120]
[354357255,1740441062257,-500.0,0.00029,120]
[354357256,1740441062266,-500.0,0.00029,120]
[354357257,1740441062275,-500.0,0.00029,120]
[354357258,1740441062285,-500.0,0.00029,120]
[354357259,1740441062294,-275.48,0.00029,120]
[354357260,1740441062304,-2022.4,0.00029025,2]
[354357261,1740441062313,-1000.0,0.00029129,2]
[354357262,1740441062322,-1002.90059045,0.00029211,2]
[354357263,1740441062333,-278.716261,0.00029243,2]
[354357264,1740441062343,-150.5,0.0002927,120]
[354357265,1740441062353,-150.5,0.0002927,120]
[354357266,1740441062362,-543.0,0.0002927,120]
[354357267,1740441062372,-150.5,0.0002927,120]
[354357268,1740441062382,-150.5,0.0002928,120]
[354357269,1740441062392,-150.5,0.0002928,120]
[354357270,1740441062402,-543.0,0.0002928,120]
[354357271,1740441062412,-150.5,0.0002928,120]
[354357272,1740441062423,-150.5,0.0002929,120]
[354357273,1740441062434,-150.5,0.0002929,120]
[354357274,1740441062445,-543.0,0.0002929,120]
[354357275,1740441062456,-150.5,0.0002929,120]
[354357276,1740441062466,-1000.0,0.0002938,2]
[354357277,1740441062477,-1000.0,0.000295,2]
[354357278,1740441062488,-1000.0,0.00029618,2]
[354357279,1740441062498,-1000.0,0.0002975,2]
[354357280,1740441062508,-1000.0,0.000298,3]
[354357281,1740441062518,-1000.0,0.000298,3]
[354357282,1740441062528,-1000.0,0.000298,3]
[354357283,1740441062537,-686.56,0.00029863,22]
[354357284,1740441062547,-1000.0,0.00029914,2]
[354357285,1740441062557,-4899.36064924,0.0002996,7]
[354357286,1740441062567,-56246.8008627,0.0002996,30]
[354357287,1740441062579,-1000.0,0.00029996,2]
[354357288,1740441062588,-1000.0,0.0003,120]
[354357289,1740441062598,-1700.0,0.0003,7]
[354357290,1740441062608,-252.0965,0.0003,2]
[354357291,1740441062617,-252.0965,0.0003,2]
[354357292,1740441062627,-500.0,0.0003,10]
[354357293,1740441062637,-395.13442656,0.0003,10]
[354357294,1740441062646,-368.0,0.0003,120]
[354357295,1740441062656,-200.0,0.0003,30]
[354357296,1740441062666,-19601.91606613,0.0003,120]
[354357297,1740441062676,-19601.91606613,0.0003,3]
[354357298,1740441062685,-160.0,0.0003,3]
[354357299,1740441062695,-265.0,0.0003,2]
[354357300,1740441062705,-200.0,0.00030055,120]
[354357301,1740441062714,-463.0,0.00030055,120]
[354357302,1740441062724,-367.52466216,0.00030055,5]
[354357303,1740441062735,-500.0,0.00030055,5]
[354357304,1740441062745,-25455.26,0.000303,2]
[354357305,1740441062756,-150.0,0.00030447,2]
[354357306,1740441062767,-396.0,0.00030983,2]
[354357307,1740441062777,-299.01854909,0.0003099,2]
[354357308,1740441062788,-300.0,0.00031,120]
[354357309,1740441062798,-686.56,0.00031232,24]
[354357310,1740441062809,-500.0,0.00031558,5]
[354357311,1740441062818,-200.0,0.00031562,120]
[354357312,1740441062832,-1700.0,0.00031644,7]
[354357313,1740441062842,-164.657,0.0003179,120]
[354357314,1740441062852,-236.55590868,0.00032,2]
[354357315,1740441062865,-1000.0,0.00032,120]
[354357316,1740441062875,-2847.31,0.00032,30]
[354357317,1740441062885,-13981.0,0.00032,30]
[354357318,1740441062895,-395.92186777,0.00032332,7]
[354357319,1740441062905,-151.0,0.00032411,120]
[354357320,1740441062914,-3091.26317433,0.0003242,14]
[354357321,1740441062924,-627.79719017,0.000325,30]
[354357322,1740441062935,-686.56,0.00032602,26]
[354357323,1740441062945,-470.82088178,0.00032876,2]
[354357324,1740441062955,-285.49622587,0.00032876,2]
[354357325,1740441062964,-395.58902071,0.00032876,2]
[354357326,1740441062973,-500.0,0.00032876,2]
[354357327,1740441062983,-495.11094069,0.00032876,2]
[354357328,1740441062992,-500.0,0.00032876,2]
[354357329,1740441063002,-500.0,0.00032876,2]
[354357330,1740441063012,-500.0,0.00032876,2]
[354357331,1740441063022,-500.0,0.00032876,2]
[354357332,1740441063034,-500.0,0.00032876,2]
[354357333,1740441063046,-500.0,0.00032876,2]
[354357334,1740441063056,-500.0,0.00032876,2]
[354357335,1740441063069,-527.12304173,0.00032876,2]
[354357336,1740441063083,-500.0,0.00032876,2]
[354357337,1740441063095,-212.64762977,0.00032876,2]
[354357338,1740441063107,-230.53256758,0.00032876,2]
[354357339,1740441063118,-323.2059723,0.00032876,2]
[354357340,1740441063129,-1000.0,0.00032876,60]
[354357341,1740441063139,-1000.0,0.00032876,60]
[354357342,1740441063150,-1000.0,0.00032876,60]
[354357343,1740441063160,-1000.0,0.00032876,60]
[354357344,1740441063171,-1000.0,0.00032876,60]
[354357345,1740441063181,-1000.0,0.00032876,60]
[354357346,1740441063192,-1000.0,0.00032876,60]
[354357347,1740441063202,-1000.0,0.00032876,60]
[354357348,1740441063212,-1000.0,0.00032876,60]
[354357349,1740441063222,-1000.0,0.00032876,60]
[354357350,1740441063233,-1055.4776039,0.00032876,60]
[354357351,1740441063244,-1666.87,0.00032876,2]
[354357352,1740441063255,-1666.87,0.00032876,2]
[354357353,1740441063266,-1666.87,0.00032876,2]
[354357354,1740441063276,-1666.87,0.00032876,2]
[354357355,1740441063287,-1666.87,0.00032876,2]
[354357356,1740441063298,-1666.87,0.00032876,2]